bitfinex/quotes_ETHUSD_20251119
["timestamp","ask_amount","ask_price","bid_price","bid_amount"]
[1763566281160,13.21964436,3025.8,3022.7,0.4524]
[1763566281469,9.28460523,3025.7,3022.8,0.4524]
[1763566281634,0.125,3025.6,3022.8,0.4524]
[1763566281972,0.85026126,3025.5,3022.8,0.4524]
[1763566282130,0.125,3025.6,3022.8,0.4524]
[1763566282131,0.90699264,3025.1,3022.8,0.4524]
[1763566282532,0.125,3025.6,3022.0,0.4524]
[1763566282533,0.90699264,3024.7,3022.0,0.4524]
[1763566282780,0.90699264,3024.1,3022.0,0.4524]
[1763566282932,0.90699264,3023.5,3021.3,0.4524]
[1763566283137,16.5409554,3022.8,3020.4,0.4524]
[1763566283376,1.7447948,3022.7,3020.4,0.4524]
[1763566283552,1.8697948,3022.7,3020.4,0.4524]
[1763566283748,1.8689948,3022.7,3020.4,0.4524]
[1763566283955,0.90699264,3022.5,3020.4,0.4524]
[1763566284133,8.36435235,3021.4,3019.0,0.1932]
[1763566284343,8.36435235,3022.2,3018.6,0.4524]
[1763566284344,0.83643524,3021.3,3018.6,0.4524]
[1763566284559,0.90699264,3021.1,3018.6,0.4524]
[1763566284764,0.125,3021.0,3018.6,0.4524]
[1763566284931,0.90699264,3021.1,3018.6,0.4524]
[1763566285131,9.93114405,3020.8,3017.4,0.1932]
[1763566285332,0.125,3020.7,3018.2,0.51903233]
[1763566285582,2.17308778,3020.6,3018.2,0.4859]
[1763566285786,0.90699264,3020.1,3018.2,0.4859]
[1763566286351,0.90699264,3019.9,3018.2,0.4859]
[1763566286693,0.90699264,3019.9,3017.4,0.1932]
[1763566286694,0.90699264,3019.9,3017.6,0.6791]
[1763566286987,0.90699264,3019.3,3017.0,3.5059]
[1763566287135,6.62580752,3018.5,3017.0,3.02]
[1763566287336,0.125,3018.4,3017.0,3.02]
[1763566287774,0.405504,3018.1,3017.0,3.02]
[1763566288353,0.125,3018.4,3017.0,3.02]
[1763566288354,0.126,3018.0,3017.0,3.02]
[1763566288673,0.405504,3017.9,3017.0,3.02]
[1763566288862,0.405504,3017.7,3017.0,3.5059]
[1763566289063,0.126,3017.8,3017.1,0.4859]
[1763566289547,0.90699264,3019.2,3017.1,0.4859]
[1763566289738,0.405504,3019.0,3017.1,0.4859]
[1763566289959,0.405504,3017.8,3017.0,3.02]
[1763566290159,0.405504,3017.6,3017.0,3.02]
[1763566290570,0.126,3017.5,3017.0,3.02]
[1763566290875,8.39604615,3018.6,3017.0,3.02]
[1763566290876,0.126,3017.4,3017.0,3.02]
[1763566291241,1.31249664,3017.2,3014.0,8.39604615]
[1763566291437,1.31249664,3017.2,3011.4,9.06517482]
[1763566291438,0.405504,3017.0,3015.4,0.4859]
[1763566291939,0.405504,3017.0,3014.7,0.4859]
[1763566291940,0.405504,3016.7,3014.7,0.4859]
[1763566292141,0.405504,3016.7,3013.9,8.39604615]
[1763566292378,13.25688528,3017.3,3014.0,0.4859]
[1763566292580,1.32568853,3017.2,3014.0,0.4859]
[1763566292793,0.127,3017.1,3014.4,8.49604615]
[1763566292953,0.127,3017.1,3014.7,0.1]
[1763566293137,0.127,3017.1,3013.8,0.532504]
[1763566293138,0.405504,3016.8,3014.8,0.4859]
[1763566293351,9.93706524,3019.0,3015.4,8.39604615]
[1763566293553,0.127,3018.9,3016.7,0.1968]
[1763566293748,1.84601114,3018.8,3016.7,0.1968]
[1763566293951,0.127,3018.7,3016.8,0.4859]
[1763566294266,0.03948863,3019.0,3016.7,0.1968]
[1763566294611,13.24901617,3019.1,3016.8,0.4859]
[1763566294612,9.93673611,3019.1,3016.8,0.4859]
[1763566294775,0.127,3019.0,3016.8,0.4859]
[1763566294974,0.03948863,3018.9,3016.8,0.4859]
[1763566295152,0.127,3019.0,3016.8,0.4859]
[1763566295351,0.127,3019.0,3017.0,0.001]
[1763566295352,8.39604615,3018.2,3017.0,0.001]
[1763566295556,8.39604615,3017.5,3017.0,0.001]
[1763566295750,1.43949664,3017.4,3017.0,0.001]
[1763566295965,0.405504,3017.2,3017.0,0.001]
[1763566296166,0.405504,3017.2,3016.6,0.001]
[1763566296488,0.127,3017.3,3016.6,0.001]
[1763566296489,0.405504,3017.0,3016.6,0.001]
[1763566296651,0.405504,3017.2,3016.6,0.001]
[1763566297093,0.127,3017.1,3016.6,0.001]
[1763566297298,6.62910174,3017.0,3016.6,0.001]
[1763566297464,0.127,3016.9,3016.6,0.4869]
[1763566297988,6.6264661,3018.2,3016.6,0.4869]
[1763566298295,0.127,3018.1,3016.6,0.4869]
[1763566298676,9.93541977,3019.5,3016.6,0.4869]
[1763566298876,0.127,3019.4,3016.6,1.39389264]
[1763566299337,0.84693094,3020.5,3017.3,0.90699264]
[1763566299338,6.6216395,3020.4,3017.3,0.90699264]
[1763566299475,6.6216395,3020.4,3016.7,0.4698]
[1763566299476,0.84693094,3019.9,3016.9,8.42379735]
[1763566299677,8.39065075,3019.7,3016.8,0.4698]
[1763566299915,1.01050257,3019.6,3016.8,0.4698]
[1763566300109,0.03948863,3019.5,3016.8,0.4698]
[1763566300394,8.39065075,3017.4,3016.6,0.001]
[1763566300594,0.03948863,3017.3,3016.6,0.001]
[1763566300823,0.405504,3017.1,3016.6,0.001]
[1763566301125,1.31249664,3016.9,3014.9,0.4698]
[1763566301436,6.75754122,3016.8,3014.9,0.4698]
[1763566301594,0.67241442,3016.7,3014.9,0.4698]
[1763566301796,0.405504,3016.7,3014.9,0.4698]
[1763566302094,0.405504,3016.5,3014.9,0.4698]
[1763566302308,0.80242828,3016.4,3014.9,0.4698]
[1763566302543,0.84693094,3016.7,3014.9,0.4698]
[1763566302693,0.405504,3016.2,3014.9,0.4698]
[1763566302896,0.405504,3016.0,3014.9,0.4698]
[1763566303093,0.67443269,3015.9,3014.9,0.4698]
[1763566303294,0.80243269,3015.8,3014.9,0.4698]
[1763566303496,0.128,3015.8,3014.9,0.4698]
[1763566303725,0.84693094,3016.1,3014.9,0.4698]
[1763566303930,0.84693094,3017.0,3015.0,0.90699264]
[1763566304093,0.128,3016.9,3015.3,0.90699264]
[1763566304295,0.128,3016.8,3015.1,0.4698]
[1763566304524,0.84693094,3017.4,3014.9,0.90699264]
[1763566304525,0.80609893,3016.7,3015.2,0.4698]
[1763566304726,0.67809893,3016.6,3015.2,0.4698]
[1763566304934,0.84693094,3016.9,3015.2,0.4698]
[1763566305138,0.80616962,3016.8,3015.4,0.90699264]
[1763566305351,0.34693094,3017.6,3015.9,0.90699264]
[1763566305501,2.82310313,3017.8,3015.9,0.90699264]
[1763566305502,0.128,3017.8,3015.9,0.90699264]
[1763566305697,0.128,3017.8,3016.0,0.4698]
[1763566305935,0.67800128,3017.7,3016.0,0.4698]
[1763566306094,1.12924125,3018.4,3016.0,0.4698]
[1763566306453,7.29233485,3017.9,3014.3,0.05]
[1763566306731,1.12924125,3016.9,3015.3,0.4698]
[1763566306931,1.97476684,3016.8,3015.3,0.4698]
[1763566307229,3.31499038,3016.6,3015.3,0.4698]
[1763566307394,0.67803696,3016.5,3015.3,0.4698]
[1763566307601,0.67745445,3016.4,3015.3,0.4698]
[1763566307929,0.128,3016.6,3015.3,1.08838264]
[1763566308139,0.128,3016.7,3015.3,0.90699264]
[1763566308547,0.128,3017.5,3015.8,0.90699264]
[1763566308754,0.1272,3017.5,3016.4,0.90699264]
[1763566309034,0.1272,3017.5,3016.1,0.1]
[1763566309398,0.1272,3017.5,3017.4,0.1813]
[1763566309859,13.25644592,3017.4,3014.8,0.4698]
[1763566310003,13.25644592,3017.4,3013.2,0.05]
[1763566310004,2.13561583,3017.3,3015.4,0.4698]
[1763566310203,1.12924125,3016.9,3015.4,0.4698]
[1763566310402,1.12924125,3016.7,3015.4,0.4698]
[1763566310624,0.67966476,3016.6,3015.5,0.90699264]
[1763566310935,0.128,3017.4,3015.9,0.1]
[1763566311110,0.68205588,3017.3,3016.0,1.47679264]
[1763566311312,0.68205588,3017.2,3016.0,8.10809264]
[1763566311636,0.68205588,3017.1,3016.1,0.4698]
[1763566311801,0.68205588,3017.0,3016.2,0.90699264]
[1763566312002,0.68205588,3016.9,3016.2,7.53789264]
[1763566312201,0.128,3017.4,3016.2,7.53789264]
[1763566312202,0.68205588,3016.8,3016.3,0.4698]
[1763566312526,1.25724125,3017.4,3016.4,0.90699264]
[1763566312831,1.69386188,3017.6,3016.4,0.90699264]
[1763566312832,1.69386188,3017.6,3017.3,0.1813]
[1763566312998,1.14491705,3017.6,3017.3,0.1813]
[1763566313201,1.14491705,3017.6,3017.4,0.4698]
[1763566313422,1.69386188,3017.6,3017.4,0.4698]
[1763566313624,0.128,3018.2,3017.4,0.4698]
[1763566313625,1.1479355,3017.7,3017.4,7.098]
[1763566313913,2.25848251,3018.7,3017.5,0.90699264]
[1763566314119,2.90654087,3018.8,3017.5,6.628]
[1763566314120,0.128,3018.6,3017.5,6.628]
[1763566314347,2.25848251,3018.3,3017.5,6.628]
[1763566314515,2.25848251,3018.9,3017.5,6.628]
[1763566314734,2.38648251,3019.3,3017.7,0.1]
[1763566314915,4.00748917,3020.1,3018.1,7.29233485]
[1763566314916,0.002,3019.1,3018.1,7.29233485]
[1763566315114,0.002,3019.1,3018.7,0.90699264]
[1763566315339,0.002,3019.5,3018.7,7.53239264]
[1763566315537,2.25848251,3021.2,3019.3,0.90699264]
[1763566315745,6.61992168,3021.2,3019.5,0.1]
[1763566315947,0.002,3019.8,3019.6,0.90699264]
[1763566316123,0.002,3019.8,3019.6,7.53039264]
[1763566316323,0.128,3021.1,3019.6,7.53039264]
[1763566316622,0.128,3022.0,3019.8,0.90699264]
[1763566316838,0.03948863,3021.9,3019.7,0.90699264]
[1763566317046,9.52933439,3021.7,3019.7,6.6232]
[1763566317223,0.405504,3021.5,3019.7,6.6232]
[1763566317424,6.61944792,3021.4,3019.7,6.6232]
[1763566317627,3.30972396,3021.4,3019.7,6.6232]
[1763566317833,6.95042032,3021.4,3019.7,6.6232]
[1763566318139,6.61944792,3021.4,3019.7,6.6232]
[1763566318329,7.76705188,3021.3,3019.7,6.6232]
[1763566318514,0.405504,3021.1,3019.7,6.6232]
[1763566318739,0.405504,3020.9,3019.7,6.6232]
[1763566318948,0.03948863,3020.8,3019.7,6.6232]
[1763566319126,0.405504,3020.9,3019.7,6.6232]
[1763566319333,9.97063268,3020.8,3019.7,6.6232]
[1763566319528,7.27085188,3020.5,3019.7,6.6232]
[1763566319756,0.1842,3019.8,3019.7,6.6232]
[1763566319947,0.1842,3019.8,3017.5,0.1]
[1763566320143,0.03948863,3019.7,3017.5,0.1]
[1763566320348,2.44268251,3020.5,3017.9,0.90699264]
[1763566320669,2.25848251,3022.0,3019.4,0.90699264]
[1763566320855,2.90654087,3022.2,3020.0,0.90699264]
[1763566320856,0.127,3022.2,3020.0,0.90699264]
[1763566321063,0.127,3022.2,3020.3,0.90699264]
[1763566321237,3.34844597,3022.1,3020.3,6.6219]
[1763566321439,5.56647159,3023.0,3020.5,7.26419867]
[1763566321778,6.7427748,3023.1,3020.6,0.90699264]
[1763566321937,3.43486278,3023.1,3021.0,0.90699264]
[1763566322138,10.54688682,3023.1,3021.1,0.90699264]
[1763566322452,1.55088868,3023.0,3021.1,0.90699264]
[1763566322780,2.25848251,3023.8,3021.1,0.90699264]
[1763566322781,0.1842,3024.0,3021.6,0.90699264]
[1763566323096,3.30898766,3023.9,3022.2,0.1]
[1763566323387,6.6159881,3023.9,3022.3,0.90699264]
[1763566323538,6.6159881,3023.9,3022.3,7.52449264]
[1763566323902,0.53568863,3023.8,3022.3,6.6175]
[1763566324189,7.26419867,3023.4,3022.3,6.6175]
[1763566324389,1.40319264,3023.8,3022.3,6.6175]
[1763566324541,1.58391831,3023.7,3022.3,6.6175]
[1763566324746,0.4962,3023.7,3022.3,6.6175]
[1763566325054,0.53568863,3023.6,3022.3,6.6175]
[1763566325241,0.405504,3023.4,3022.3,6.6175]
[1763566325589,0.405504,3023.1,3020.2,0.1]
[1763566325885,0.127,3023.0,3020.4,0.90699264]
[1763566326046,0.6232,3023.0,3020.3,5.85419689]
[1763566326244,0.03948863,3022.9,3020.4,0.90699264]
[1763566326474,0.405504,3022.6,3020.4,6.6189]
[1763566326682,0.66545872,3022.5,3020.4,6.6189]
[1763566326893,0.127,3022.8,3020.5,1.00699264]
[1763566327047,0.03948863,3023.2,3021.0,0.1]
[1763566327394,13.26962687,3023.4,3021.1,1.00699264]
[1763566327597,0.405504,3023.3,3021.1,7.52709264]
[1763566327757,0.405504,3023.1,3021.1,6.6201]
[1763566328096,1.31249664,3022.7,3021.1,6.6201]
[1763566328389,0.405504,3022.5,3021.1,6.6201]
[1763566328589,0.84640191,3022.6,3021.1,6.6201]
[1763566328590,0.405504,3022.3,3021.1,6.6201]
[1763566328794,0.405504,3022.1,3021.1,6.6201]
[1763566328942,0.405504,3021.9,3021.1,6.6201]
[1763566329150,1.31249664,3021.7,3021.1,5.6201]
[1763566329480,0.405504,3021.3,3021.1,5.6201]
[1763566329685,0.127,3021.8,3020.3,0.49]
[1763566329851,0.405504,3021.6,3019.7,0.49]
[1763566330046,0.44499263,3021.6,3019.7,0.49]
[1763566330246,0.03948863,3021.7,3019.7,0.49]
[1763566330492,0.127,3021.8,3019.7,0.49]
[1763566330789,0.90349263,3021.7,3019.7,0.49]
[1763566330942,0.90349263,3021.7,3019.3,0.1821]
[1763566330943,6.31269689,3021.7,3019.3,0.1821]
[1763566331300,0.405504,3021.5,3019.3,0.6721]
[1763566331453,9.92917188,3021.4,3019.3,0.6721]
[1763566331796,6.61944792,3021.4,3019.4,0.49]
[1763566332096,0.4585,3021.3,3019.4,0.49]
[1763566332293,6.61944792,3021.4,3019.4,0.49]
[1763566332445,10.59111667,3021.4,3019.4,0.49]
[1763566332645,0.4585,3021.3,3019.4,0.49]
[1763566332962,7.28139271,3021.4,3019.4,0.49]
[1763566333163,7.28139271,3021.4,3019.4,0.59]
[1763566333359,0.4585,3021.3,3019.4,0.49]
[1763566333563,0.404704,3021.1,3019.4,0.49]
[1763566333780,0.404704,3021.1,3018.7,0.49]
[1763566333781,1.26580191,3021.0,3018.7,0.49]
[1763566333981,0.68030208,3020.9,3019.4,0.001]
[1763566334163,0.4585,3020.9,3019.4,0.001]
[1763566334362,0.127,3021.0,3019.4,0.001]
[1763566334363,0.127,3021.0,3019.4,0.491]
[1763566334678,0.5855,3021.0,3019.4,0.491]
[1763566334882,0.127,3021.0,3019.4,0.491]
[1763566335748,0.127,3021.0,3019.8,0.1]
[1763566336002,6.74733303,3021.0,3019.4,0.491]
[1763566336144,7.42206633,3021.0,3019.4,0.491]
[1763566336351,10.05750387,3021.0,3019.4,0.491]
[1763566336705,0.405504,3020.8,3019.4,0.001]
[1763566336885,0.68193605,3020.7,3019.4,0.001]
[1763566337183,0.405504,3020.4,3019.4,0.001]
[1763566337348,0.405504,3019.0,3016.9,0.49]
[1763566337550,10.0633944,3018.9,3016.9,0.49]
[1763566337770,13.3758592,3018.9,3016.7,0.6721]
[1763566337990,8.30819177,3018.8,3016.7,0.49]
[1763566338174,0.405504,3018.5,3016.7,0.49]
[1763566338357,10.0633944,3018.9,3016.7,0.49]
[1763566338557,0.126,3018.9,3016.8,0.0331477]
[1763566338758,0.1821,3019.9,3016.7,0.59]
[1763566338759,0.126,3019.9,3017.6,0.1]
[1763566338966,0.126,3019.9,3017.7,0.49]
[1763566339577,3.43737966,3019.9,3017.7,0.49]
[1763566339826,0.126,3019.9,3018.2,0.1]
[1763566340027,0.126,3019.9,3018.6,0.1]
[1763566340192,0.4585,3021.6,3018.9,0.1]
[1763566340386,0.87477817,3021.6,3019.8,0.1821]
[1763566340585,0.126,3021.5,3019.9,0.90699264]
[1763566340892,0.126,3021.5,3019.9,6.6227]
[1763566340893,1.18364968,3021.4,3019.9,6.6227]
[1763566341247,1.18364968,3021.4,3018.1,0.05]
[1763566341248,0.1821,3020.0,3014.3,0.17310707]
[1763566341392,9.93607788,3019.3,3016.5,0.49]
[1763566341594,1.31249664,3019.1,3016.4,0.49]
[1763566341887,0.405504,3018.9,3016.4,7.1174]
[1763566342113,0.405504,3018.7,3016.4,7.1174]
[1763566342441,0.5845,3019.0,3016.4,7.1174]
[1763566342442,0.68494529,3018.6,3016.5,0.49]
[1763566342734,0.4585,3018.9,3016.5,6.6302]
[1763566342735,0.405504,3018.0,3016.5,6.6302]
[1763566342891,0.405504,3017.8,3016.5,6.6302]
[1763566343086,1.43670478,3017.9,3016.5,6.6302]
[1763566343087,0.405504,3017.6,3016.5,6.6302]
[1763566343526,6.62822296,3017.4,3016.5,6.6302]
[1763566343832,1.31249664,3017.3,3016.5,6.6302]
[1763566344007,0.405504,3017.3,3016.5,6.6302]
[1763566344188,1.49328384,3017.2,3016.5,6.6302]
[1763566344388,0.4585,3017.2,3016.5,6.6302]
[1763566344589,5.85419689,3017.0,3014.0,0.1821]
[1763566344794,0.1821,3015.9,3014.1,0.48987739]
[1763566345090,0.127,3015.8,3014.1,0.4567]
[1763566345528,6.6319594,3015.7,3014.1,0.4567]
[1763566346021,6.62896061,3017.1,3014.6,0.90699264]
[1763566346224,3.31444101,3017.1,3014.6,0.90699264]
[1763566346396,3.70576511,3017.1,3014.7,1.54569264]
[1763566346592,0.127,3017.2,3015.0,0.1]
[1763566346794,0.127,3017.2,3015.2,0.405504]
[1763566347115,0.127,3017.2,3015.6,0.1]
[1763566347340,0.127,3017.2,3015.6,6.7322]
[1763566347517,6.75567482,3017.2,3015.7,0.4567]
[1763566347826,0.127,3017.2,3015.8,0.1]
[1763566348160,0.4718,3018.9,3017.1,0.182]
[1763566348443,10.53553611,3019.1,3017.1,6.8109]
[1763566348594,0.03948863,3018.8,3017.1,6.8109]
[1763566348796,0.4718,3019.0,3017.2,0.4567]
[1763566349022,0.1811,3017.2,3014.5,0.6387]
[1763566349238,0.127,3017.1,3014.5,0.6387]
[1763566349394,1.31249664,3016.6,3014.5,0.6387]
[1763566349593,5.85419689,3016.7,3014.5,0.6387]
[1763566349594,6.6315196,3015.9,3014.5,0.6387]
[1763566349827,6.7595196,3015.9,3014.5,0.6387]
[1763566350229,6.7595196,3015.9,3014.5,0.182]
[1763566350561,3.4437598,3015.9,3014.6,0.4567]
[1763566350694,10.0752794,3015.9,3014.6,0.4567]
[1763566350894,6.7595196,3015.9,3014.6,0.4567]
[1763566351164,1.63179664,3015.8,3013.9,0.182]
[1763566351438,3.4656562,3015.8,3014.0,0.4567]
[1763566351638,1.31249664,3015.6,3014.0,0.4567]
[1763566351853,0.90699264,3015.6,3014.0,0.4567]
[1763566352007,0.45564682,3016.7,3015.9,1.31957877]
[1763566352346,0.03948863,3017.6,3015.9,0.1]
[1763566352505,7.0980485,3018.3,3016.0,0.03315649]
[1763566352705,7.0980485,3018.3,3015.5,6.25970089]
[1763566352706,0.03948863,3018.2,3015.5,0.1]
[1763566352912,0.51128863,3018.2,3015.2,0.1]
[1763566353153,0.4718,3018.2,3015.3,0.405504]
[1763566353447,0.4718,3018.2,3015.3,7.58979264]
[1763566353646,6.62668566,3018.1,3015.7,0.90699264]
[1763566353957,0.16948863,3018.0,3015.7,7.53899264]
[1763566354120,0.4718,3017.9,3015.7,7.53899264]
[1763566354311,0.03948863,3017.8,3015.7,7.53899264]
[1763566354750,0.6018,3018.0,3015.7,7.53899264]
[1763566355049,0.13,3018.0,3016.0,0.1]
[1763566355255,0.6539,3019.3,3016.9,0.405504]
[1763566355413,0.1821,3020.0,3016.9,0.405504]
[1763566355414,3.35286106,3019.9,3017.8,0.1]
[1763566355612,3.31158724,3019.7,3017.3,1.00699264]
[1763566355846,0.4718,3019.6,3017.3,7.63539264]
[1763566356036,0.002,3019.9,3017.4,0.405504]
[1763566356235,0.002,3019.9,3018.0,0.1]
[1763566356437,3.31147758,3019.8,3018.0,6.6269]
[1763566356651,7.04097155,3019.8,3018.0,6.6269]
[1763566356952,0.4718,3019.7,3018.0,6.6269]
[1763566357111,0.03948863,3019.6,3018.0,6.6269]
[1763566357311,0.4718,3019.7,3018.0,6.6269]
[1763566357512,0.4718,3019.7,3018.1,0.90699264]
[1763566357750,3.31169691,3019.6,3018.1,0.90699264]
[1763566357914,7.09500548,3019.7,3018.1,7.53369264]
[1763566358115,14.42789601,3019.7,3018.1,6.6267]
[1763566358414,0.405504,3019.5,3018.1,6.6267]
[1763566358640,0.1903,3018.2,3018.1,6.6267]
[1763566358842,0.129,3018.2,3018.1,6.1267]
[1763566359171,0.129,3018.2,3016.5,0.4535]
[1763566359746,9.94002849,3018.1,3016.5,0.4535]
[1763566360436,0.4521,3018.0,3016.3,0.1359]
[1763566361272,0.4521,3018.0,3016.3,0.5894]
[1763566361568,7.63278851,3018.1,3016.3,0.5894]
[1763566361569,3.31254283,3018.1,3016.3,0.5894]
[1763566361757,3.31268426,3018.7,3016.5,0.505504]
[1763566362078,9.93805278,3018.7,3016.6,0.90699264]
[1763566362274,0.1831,3020.3,3016.7,0.0331488]
[1763566362573,9.93509073,3019.6,3017.3,1.00699264]
[1763566362801,6.62339382,3019.6,3017.4,0.405504]
[1763566362938,0.002,3019.9,3018.1,0.405504]
[1763566363134,0.002,3019.9,3018.3,0.405504]
[1763566363379,0.002,3019.9,3019.8,0.182]
[1763566363741,0.002,3019.9,3019.8,0.6355]
[1763566365475,0.002,3019.9,3019.8,8.16549264]
[1763566365688,0.002,3019.9,3019.8,7.52203264]
[1763566366039,0.002,3020.3,3019.8,7.52203264]
[1763566366040,0.002,3020.3,3019.9,0.90699264]
[1763566366278,0.002,3020.3,3019.9,7.53769264]
[1763566366483,0.002,3020.3,3020.0,0.1]
[1763566366655,0.002,3020.3,3020.1,0.90699264]
[1763566366978,0.4521,3022.1,3020.1,7.53729264]
[1763566367136,0.03948863,3022.7,3020.1,7.53729264]
[1763566367137,10.37951564,3022.0,3020.1,6.6303]
[1763566367341,1.03795156,3021.9,3020.1,6.6303]
[1763566367567,0.4521,3021.8,3020.1,6.6303]
[1763566367773,0.4521,3021.8,3020.2,0.90699264]
[1763566367935,7.06913886,3022.5,3020.3,0.1]
[1763566368141,7.06913886,3022.5,3020.3,6.6298]
[1763566368142,0.73792389,3022.4,3020.3,6.6298]
[1763566368374,1.19002389,3022.4,3020.4,0.90699264]
[1763566368575,0.4521,3022.3,3020.4,0.90699264]
[1763566368767,0.4521,3022.3,3020.4,0.74442143]
[1763566369162,0.03948863,3022.2,3020.4,0.74442143]
[1763566369567,0.4521,3022.1,3020.4,0.74442143]
[1763566369773,9.92720052,3022.0,3020.4,0.74442143]
[1763566369968,1.07741868,3021.9,3020.3,6.6298]
[1763566370277,0.4521,3021.8,3020.3,6.6298]
[1763566370461,0.03948863,3021.7,3020.3,6.6298]
[1763566370639,0.128,3021.6,3020.3,6.6298]
[1763566370842,0.49158863,3021.5,3020.3,6.6298]
[1763566371068,0.4521,3021.5,3020.3,6.6298]
[1763566371770,9.92917188,3021.4,3020.3,6.6298]
[1763566371946,10.98009907,3021.4,3020.3,6.6298]
[1763566372141,0.4521,3021.3,3020.3,6.6298]
[1763566373878,0.1903,3020.4,3020.3,6.6298]
[1763566374051,0.3183,3020.4,3020.3,5.6298]
[1763566374262,0.7704,3020.4,3020.3,5.6298]
[1763566374453,0.128,3020.4,3019.2,0.4535]
[1763566375356,0.128,3020.4,3018.6,0.4535]
[1763566375654,0.128,3020.4,3018.6,0.5815]
[1763566375979,9.93278811,3020.3,3018.6,0.4535]
[1763566376164,3.89094739,3020.4,3018.7,0.4535]
[1763566376368,0.128,3020.4,3018.7,0.4535]
[1763566376566,6.74969294,3020.4,3018.8,0.1]
[1763566376773,0.128,3020.4,3018.8,0.1]
[1763566376985,0.128,3020.4,3018.9,0.4535]
[1763566377145,0.128,3020.4,3019.0,0.1]
[1763566377469,3.43888571,3020.4,3019.0,0.1]
[1763566377785,0.128,3020.4,3019.1,0.1]
[1763566377957,3.43882361,3020.4,3019.1,0.1]
[1763566378160,3.43882361,3020.4,3019.1,0.4535]
[1763566378346,0.4521,3021.6,3019.1,0.4535]
[1763566378680,0.4521,3021.5,3019.4,0.1]
[1763566378881,0.4521,3021.5,3019.3,0.127]
[1763566379096,0.03948863,3021.4,3019.1,0.6805]
[1763566379248,0.405504,3021.3,3019.1,0.4535]
[1763566379449,0.4521,3021.2,3019.1,0.4535]
[1763566379679,0.03948863,3021.1,3019.1,0.4535]
[1763566379877,9.93048657,3021.0,3019.1,0.4535]
[1763566380078,1.01602752,3020.9,3019.1,0.4535]
[1763566380245,1.46812752,3020.9,3019.1,0.4535]
[1763566380450,0.405504,3020.7,3018.2,0.1821]
[1763566380689,0.405504,3020.7,3016.4,32.43]
[1763566380690,0.405504,3020.5,3017.4,0.1834]
[1763566381000,1.31249664,3020.2,3017.1,0.4535]
[1763566381204,0.405504,3020.0,3017.1,0.4535]
[1763566381377,0.405504,3019.8,3016.5,0.4535]
[1763566381556,0.405504,3019.6,3016.6,0.65709009]
[1763566381754,0.405504,3019.6,3016.5,0.4535]
[1763566381755,13.24810384,3019.3,3017.0,0.1]
[1763566381982,6.62405192,3019.3,3017.0,0.1]
[1763566382192,0.4521,3020.7,3018.0,0.90699264]
[1763566382361,1.26098902,3020.7,3018.4,0.1]
[1763566382690,0.1903,3021.1,3018.7,0.405504]
[1763566382691,6.62010776,3021.1,3018.7,0.405504]
[1763566382901,0.4521,3022.0,3019.4,0.405504]
[1763566383198,0.4521,3022.0,3020.3,0.1]
[1763566383500,13.2363434,3021.8,3020.4,0.90699264]
[1763566383699,1.7798832,3021.7,3020.3,6.6219]
[1763566384003,13.27750819,3021.6,3020.3,6.6219]
[1763566384171,0.4521,3021.5,3020.3,6.6219]
[1763566384372,0.03948863,3021.4,3020.3,6.6219]
[1763566384697,0.532504,3021.3,3020.3,6.6219]
[1763566384940,0.03948863,3021.2,3020.3,6.6219]
[1763566385069,0.4521,3021.1,3020.3,6.6219]
[1763566385265,0.405504,3020.9,3020.3,6.6219]
[1763566385465,0.405504,3020.7,3018.3,0.4535]
[1763566385690,0.03948863,3020.6,3018.3,0.4535]
[1763566385870,0.4521,3020.6,3018.3,0.5535]
[1763566386066,0.03948863,3020.5,3018.3,0.5535]
[1763566386281,0.405504,3020.4,3017.7,0.1834]
[1763566386483,0.127,3020.3,3017.2,0.78880367]
[1763566386823,0.127,3020.3,3015.5,1.67718237]
[1763566386824,1.31249664,3019.8,3016.5,0.4535]
[1763566386964,0.405504,3019.6,3016.5,0.4535]
[1763566387299,0.405504,3019.4,3016.5,0.4535]
[1763566387600,1.3692728,3019.7,3016.5,0.4535]
[1763566387601,1.13924057,3019.5,3016.5,0.4535]
[1763566387902,0.405504,3019.0,3016.5,1.36049264]
[1763566388404,16.5606783,3019.2,3016.5,1.36049264]
[1763566388405,0.1802,3019.8,3017.1,0.90699264]
[1763566388616,0.1802,3019.8,3017.2,0.901404]
[1763566388778,0.4819,3019.7,3017.2,0.4959]
[1763566388982,0.4819,3019.7,3017.3,0.4959]
[1763566389169,0.4819,3019.7,3017.3,0.5959]
[1763566389614,0.4819,3019.7,3017.3,6.6258]
[1763566389615,0.405504,3019.6,3017.3,6.6258]
[1763566389912,0.90699264,3019.4,3017.3,6.6258]
[1763566390071,1.8209259,3019.3,3017.3,6.6258]
[1763566390406,0.126,3019.2,3017.3,6.6258]
[1763566390604,0.6621,3019.1,3017.3,6.6258]
[1763566390803,0.4819,3019.7,3017.8,0.1]
[1763566391101,0.4819,3019.7,3017.8,6.6274]
[1763566391304,6.80315675,3019.8,3017.9,0.1837]
[1763566391512,0.126,3020.3,3018.0,0.1]
[1763566391673,10.23906883,3020.3,3018.1,1.00699264]
[1763566391869,9.93344589,3020.1,3018.1,6.6267]
[1763566392204,0.90699264,3020.0,3018.1,6.6267]
[1763566392403,1.38889264,3020.0,3018.1,6.6267]
[1763566392602,0.126,3019.9,3018.2,0.4959]
[1763566392929,0.64738863,3019.9,3018.2,6.6265]
[1763566393297,0.4819,3019.8,3018.2,6.6265]
[1763566393481,0.44499263,3019.7,3018.2,6.6265]
[1763566393690,0.4819,3019.8,3018.2,6.6265]
[1763566393882,9.93509073,3019.6,3018.2,6.6265]
[1763566394109,10.98073867,3019.6,3018.2,6.6265]